Cogmind - Beta 13 @@@ ROGUE MODE // 2024.07.12 @ 22:36:34 Player: APerTAS Result: Destroyed by G-34 Mercenary with Small Laser Performance ------------- Evolutions (1) 500 Regions Visited (2) 400 Robots Destroyed (13) 65 Value Destroyed (379) 379 Prototype IDs (3) 60 Alien Tech Used (0) 0 Bonus (0) 0 TOTAL SCORE: 1404 Bonus ------- None Cogmind --------- Core Integrity 0/400 Matter 292/300 Energy 100/100 System Corruption 40% Temperature Cool (6) Movement Core (150) Ox2 Location -9/Materials Parts ------- > --- POWER (1) -------- (None) > --- PROPULSION (3) --- (None) > --- UTILITY (3) ------ Small Storage Unit > --- WEAPON (2) ------- Mace > --- INVENTORY (8) ---- Improved Heat Sink Small Storage Unit Weight Redist. System Hardened Light Armor Plating EM Shotgun Heavy Assault Rifle Peak State ------------ > --- POWER ------------ (None) > --- PROPULSION ------- Light Treads Compact Wheel > --- UTILITY ---------- Heat Sink Small Storage Unit Sensor Array > --- WEAPON ----------- Improved EM Shotgun Mace > --- INVENTORY -------- Improved Heat Sink Small Storage Unit Weight Redist. System Hardened Light Armor Plating EM Shotgun Heavy Assault Rifle Mace [Rating: 11] Favorites ----------- Power Light Ion Engine Engine Light Ion Engine Propulsion Hover Unit Treads Light Treads Wheel Compact Wheel Hover Unit Hover Unit Utility Small Storage Unit Device Sensor Array Storage Small Storage Unit Protection Hardened Light Armor Plating Weapon Mace Energy Gun Improved EM Shotgun Ballistic Gun Heavy Assault Rifle Impact Weapon Mace Build | -11 -10 -9 ------- Run | Yrd Mat Mat Slots Evolved 2 | . . 2 Power . | . . . Propulsion 1 | . . 1 Utility 1 | . . 1 Weapon . | . . . Parts Attached 24 | . 15 9 Power 1 | . 1 . Engine 1 | . 1 . Core . | . . . Reactor . | . . . Propulsion 7 | . 5 2 Treads 1 | . . 1 Leg . | . . . Wheel 3 | . 2 1 Hover 3 | . 3 . Flight . | . . . Utility 8 | . 6 2 Device 5 | . 4 1 Storage 2 | . 1 1 Processor . | . . . Hackware . | . . . Protection 1 | . 1 . Artifact . | . . . Weapon 8 | . 3 5 Energy Gun 3 | . 1 2 Energy Cannon . | . . . Ballistic Gun 1 | . . 1 Ballistic Cannon . | . . . Launcher . | . . . Special Weapon . | . . . Impact Weapon 4 | . 2 2 Slashing Weapon . | . . . Piercing Weapon . | . . . Special Melee Weapon . | . . . Unidentified Prototypes 1 | . . 1 Corrupted Parts 5 | . . 5 System Corruption 40 | . . 40 Parts Lost 10 | . 2 8 Power 1 | . . 1 Propulsion 4 | . 1 3 Utility 2 | . . 2 Weapon 3 | . 1 2 Highest Loss Streak 5 | . 2 5 To Critical Strikes . | . . . Average Slot Usage (%) 50 | . 47 54 Wheel 3 | . 3 4 Hover 13 | . 19 4 Device 6 | . . 15 Storage 8 | . 6 11 Energy Gun 3 | . . 6 Impact Weapon 13 | . 16 10 Naked Turns 6 | . 6 . Heaviest Build 12 | . 11 12 Greatest Support 24 | 3 24 20 Greatest Overweight (x) 3 | . 1 3 Average Overweight (x) . | . . . Largest Inventory Capacity 8 | 5 8 8 Average Capacity 7 | 5 6 8 Most Carried 8 | . 8 8 Average Carried 5 | . 4 6 Final Capacity 8 | 5 8 8 Final Carried 6 | . 5 6 Class Distribution -------------------- 100% | Mutant Dominant Class ---------------- Mutant | -10/Materials Mutant | -9/Materials Resources | -11 -10 -9 ----------- Run | Yrd Mat Mat Matter Collected 412 | 62 268 82 Remotely . | . . . Salvage Created 572 | . 324 248 Parts 18 | . 7 11 Haulers Intercepted 1 | . 1 . Recyclers Shooed . | . . . Parts Field Recycled . | . . . Retrieved Matter . | . . . Parts Self-Destructed . | . . . Prevented . | . . . Kills | -11 -10 -9 ------- Run | Yrd Mat Mat Combat Hostiles Destroyed 8 | . 4 4 Melee 5 | . 3 2 Classes Destroyed 6 | . 5 1 Tunneler 1 | . 1 . Hauler 1 | . 1 . Recycler 2 | . 1 1 Watcher 1 | . 1 . Grunt 4 | . 4 . Sentry 4 | . . 4 Best Kill Streak 2 | . 2 2 Combat Bots Only 2 | . 2 1 Max Kills in Single Turn 1 | . 1 1 Gunslinging . | . . . Exploded . | . . . Melee 1 | . 1 1 Uniques/NPCs Destroyed . | . . . Combat | -11 -10 -9 -------- Run | Yrd Mat Mat Hostile Shots Fired 119 | . 34 85 Missed 26 | . 12 14 Damage Taken 1306 | . 330 976 Core 528 | . 123 405 Absorbed by Shields . | . . . Core Remaining (%) 75 | 100 50 . Volleys Fired 10 | . 7 3 Largest 1 | . 1 1 Hottest 45 | . 45 45 Shots Fired 10 | . 7 3 Gun 10 | . 7 3 Cannon . | . . . Launcher . | . . . Special . | . . . Kinetic . | . . . Thermal . | . . . Explosive . | . . . Electromagnetic 10 | . 7 3 Robot Hit Streak 7 | . 7 . Robot Miss Streak 2 | . 2 . Penetration Max . | . . . Secondary Targets . | . . . Shots Hit Robots 46 | . 15 31 Core Hits 8 | . 4 4 Critical Kills 1 | . . 1 Critical Parts Destroyed 5 | . 4 1 Critical Strikes 6 | . 4 2 Smash 6 | . 4 2 Melee Attacks 54 | . 16 38 Impact 54 | . 16 38 Slashing . | . . . Piercing . | . . . Sneak Attacks 4 | . 3 1 Combat Hostiles . | . . . Follow-up Attacks . | . . . Damage Inflicted 1286 | . 489 797 Guns 115 | . 115 . Cannons . | . . . Explosions . | . . . Melee 1171 | . 374 797 Ramming . | . . . Kinetic . | . . . Thermal . | . . . Explosive . | . . . Electromagnetic 115 | . 115 . Impact 1171 | . 374 797 Slashing . | . . . Piercing . | . . . Highest Corruption 40 | . . 40 Average Corruption 30 | . . 30 Corruption Purged . | . . . Corruption Blocked . | . . . Effects 16 | . . 16 Message Errors 2 | . . 2 Matter Fused 1 | . . 1 Heat Flow Errors 2 | . . 2 Energy Discharges 4 | . . 4 Parts Rejected 1 | . . 1 Data Loss (minor) 1 | . . 1 Misdirections 5 | . . 5 Overload Shots . | . . . Overflow Damage 283 | . 212 71 Projectiles . | . . . Explosions . | . . . Melee 283 | . 212 71 Knockbacks 1 | . . 1 Impact 1 | . . 1 Kinetic . | . . . Secondary . | . . . Self-Inflicted Damage . | . . . Shots . | . . . Rammed 1 | . . 1 Targets Rammed 1 | . . 1 Kicked . | . . . Crushed . | . . . Highest Temperature 97 | . 43 97 Average Temperature 31 | . 23 51 Received Heat Transfer 528 | . 183 345 Siege Activations . | . . . Robots Corrupted . | . . . Combat Hostiles . | . . . Parts Fried 8 | . 7 1 Impact Corruptions 15 | . 9 6 Robots Melted . | . . . Combat Hostiles . | . . . Parts Melted . | . . . Heat Transferred . | . . . Parts Sabotaged . | . . . Parts Stolen . | . . . Parts Stripped . | . . . Power Chain Reactions . | . . . Alert | -11 -10 -9 ------- Run | Yrd Mat Mat Peak Influence 181 | . 181 167 Initial 12 | . . 12 Average 93 | . 102 83 Maximum Alert Level . | . . . Low Security (%) 100 | 100 100 100 Level 1 . | . . . Level 2 . | . . . Level 3 . | . . . Level 4 . | . . . Level 5 . | . . . High Security . | . . . Max Security . | . . . Squads Dispatched 1 | . . 1 Investigation . | . . . Extermination . | . . . Reinforcement 1 | . . 1 Assault . | . . . Garrison . | . . . Intercept . | . . . Searches Triggered . | . . . Construction Impeded . | . . . Haulers Reinforced . | . . . Active Scanning Responses . | . . . Cargo Convoy Interrupts . | . . . Stealth | -11 -10 -9 --------- Run | Yrd Mat Mat Distress Signals . | . . . Communications Jammed . | . . . Distress Signals . | . . . Times Spotted 22 | . 12 10 Peak Tracking Total 4 | . 4 4 Tactical Retreats . | . . . Traps | -11 -10 -9 ------- Run | Yrd Mat Mat Traps Triggered . | . . . Indirectly . | . . . Trap Hack Attempts . | . . . Triggered . | . . . Disarmed 6 | . 6 . Reprogrammed 4 | . 4 . Reused . | . . . Traps Extracted . | . . . Installed . | . . . Triggered . | . . . Machines | -11 -10 -9 ---------- Run | Yrd Mat Mat Machines Disabled . | . . . Max in Single Turn . | . . . Machines Repaired . | . . . Machines Dismantled . | . . . Machines Sabotaged . | . . . Overloaded Fab Kills . | . . . Hacking | -11 -10 -9 --------- Run | Yrd Mat Mat Machines Accessed 8 | . 6 2 Terminals 8 | . 6 2 Fabricators . | . . . Repair Stations . | . . . Recycling Units . | . . . Scanalyzers . | . . . Garrison Access . | . . . Total Hacks 29 | . 25 4 Successful 12 | . 12 . Failed 17 | . 13 4 Catastrophic 1 | . . 1 Database Lockouts . | . . . Manual 3 | . 2 1 Terminals 29 | . 25 4 Fabricators . | . . . Repair Stations . | . . . Recycling Units . | . . . Scanalyzers . | . . . Garrison Access . | . . . Terminal Hacks 12 | . 12 . Record 2 | . 2 . Prototype ID Bank 1 | . 1 . Branch Access Points 1 | . 1 . Alert Level 1 | . 1 . Locate Traps 2 | . 2 . Disarm Traps 1 | . 1 . Reprogram Traps 1 | . 1 . Patrol Status 1 | . 1 . Registered Components 1 | . 1 . Zone Layout 1 | . 1 . Fabricator Hacks . | . . . Repair Station Hacks . | . . . Recycling Unit Hacks . | . . . Scanalyzer . | . . . Garrison Access Hacks . | . . . Unauthorized Hacks . | . . . Terminals . | . . . Fabricators . | . . . Repair Stations . | . . . Recycling Units . | . . . Scanalyzers . | . . . Garrison Access . | . . . Data Cores Recovered . | . . . Used . | . . . Hacking Detections 8 | . 6 2 Full Trace Events 2 | . 2 . Feedback Events . | . . . Feedback Blocked . | . . . Robot Schematics Acquired . | . . . Robots Built . | . . . Authchips . | . . . Time . | . . . Total Robot Build Rating . | . . . Part Schematics Acquired . | . . . Parts Built . | . . . Authchips . | . . . Time . | . . . Total Part Build Rating . | . . . Parts Repaired . | . . . Time . | . . . Parts Recycled . | . . . Recycled Matter . | . . . Retrieved Matter . | . . . Retrieved Components . | . . . Parts Scanalyzed . | . . . Part Schematics Acquired . | . . . Parts Damaged . | . . . Bothacking | -11 -10 -9 ------------ Run | Yrd Mat Mat Used RIF Installer . | . . . Robots Hacked . | . . . Non-combat . | . . . Combat . | . . . Robot Hacks Applied . | . . . Relay Couplers Released . | . . . Fabnet Peak Effective % . | . . . Robots Rewired . | . . . Allies Hacked . | . . . Hacks Repelled . | . . . Allies | -11 -10 -9 -------- Run | Yrd Mat Mat Total Allies . | . . . Largest Group . | . . . Highest-Rated Group . | . . . Highest-Rated Ally . | . . . Total Orders . | . . . Ally Attacks . | . . . Total Damage . | . . . Kills . | . . . Allies Corrupted . | . . . Allies Melted . | . . . Intel | -11 -10 -9 ------- Run | Yrd Mat Mat Robot Analysis Total . | . . . Derelict Logs Recovered . | . . . Drone Launches . | . . . Drone Recoveries . | . . . Exploration | -11 -10 -9 ------------- Run | Yrd Mat Mat Turns Passed 731 | 10 423 298 Spaces Moved 735 | 20 546 169 Core 35 | 20 9 6 Treads 7 | . . 7 Legs . | . . . Wheels 126 | . 39 87 Hover 567 | . 498 69 Flight . | . . . Fastest Speed 50 | 50 50 56 Average Speed 68 | 50 60 99 Slowest Speed 200 | 50 100 200 Overloaded Moves . | . . . Propulsion Burnouts . | . . . Robots Hopped . | . . . Cave-ins Triggered . | . . . Exploration Rate (%) 25 | 3 59 13 Regions Visited 2 Branch Regions . Pre-discovered Areas . | . . . Known Exits Taken . | . . . Unknown Exits Taken 2 | 1 1 . Scrap Searched . | . . . Spaces Dug . | . . . Terrain Destroyed . | . . . Melee . | . . . Projectile . | . . . AOE . | . . . Terrain Rammed . | . . . Walls Destroyed . | . . . Machines Disabled . | . . . Actions | -11 -10 -9 --------- Run | Yrd Mat Mat Total 858 | 19 611 228 Wait . | . . . Move 733 | 19 545 169 Hop . | . . . Pick Up 25 | . 18 7 Fast Attach . | . . . Attach 20 | . 14 6 Detach 5 | . 5 . Swap 4 | . 1 3 Drop 6 | . 5 1 Fire 10 | . 7 3 Melee 54 | . 16 38 Ram 1 | . . 1 Kick . | . . . Crush . | . . . Escape Stasis . | . . . Rewire . | . . . Trap . | . . . Miscellaneous . | . . . Route ------- -11/Scrapyard -10/Materials (discovered 5 exits: *Mat x3 / Min x2) -9/Materials History --------- Turn | Location | Event 2 | -11/Scrapyard | Discovered new exit (range 16) 11 | -11/Scrapyard | Entered Materials 152 | -10/Materials | Discovered new exit (range 11) 176 | -10/Materials | Identified exit to Mines 314 | -10/Materials | Build established: Mutant 321 | -10/Materials | Discovered new exit (range 9) 338 | -10/Materials | Discovered new exit (range 16) 434 | -10/Materials | Entered another Materials area 434 | -9/Materials | Evolved 2 slots: Propulsion x1, Utility x1 483 | -9/Materials | System corruption reached 10% 557 | -9/Materials | System corruption reached 30% 691 | -9/Materials | Core integrity fell below 50% 714 | -9/Materials | Core integrity fell below 20% 730 | -9/Materials | Lost 5 parts (1n2u2w) 732 | -9/Materials | Destroyed by G-34 Mercenary with Small Laser Last Messages --------------- Y-45 Defender suffers critical hit (Smash). Destroyed Heat Sink. Y-45 Defender system corrupted by crushing effect. Com. Wheel destroyed. System corrupted: Energy discharge (-22). Beam Rifle destroyed. Mace destroyed. Slammed into Y-45 Defender. Acquired 2 matter. Y-45 Defender heat short circuits Beam Rifle. Y-45 Defender heat damages Imp. Ion Engine. G-34 Mercenary knocked back. System corrupted: Energy discharge (-36). Destroyed Broken Beam Rifle. Destroyed Lgt. Armor Plating. Y-45 Defender system corrupted by crushing effect. Y-45 Defender system terminally corrupted. Lgt. Treads fried. Map ----- +----------------------------------------------------+ | ??????????????????????????????? | | ??????????????????????????????? | | ??????????????????????????????? | | ??????????????????????????????? | | ??????????????????????????????? | | ??????????????????????????????? | | ??????????????????????????????? | | ??????????????????????????????? | | ??????????????????????????????? | | ??????????????????????????????? | | ??????????????????????????????? | | ??????????????????????????????? | | ??????????????????????????????? | | ??????????????????????????????? | | ??????????????????????????????? | | ??????????????????????????????? | | ??????????????????????????????? | | ??????????????????????????????? | | ???????????#????????????###???? | | ??????????## ??????????#%##### | | ??????????# #########! # | | ??????????# #= # | | ??????????# # # | | ??????????# /g""" # | | ????????????????##### #%""" # | | ????????????????????# #@""" # | | ???????###########??# # g # | | ???????# """ #??# ####### | | ???????# """"" #??# #?????? | | ???????# """"" #??# #?????? | | ???????# """"" #??# ####### | | ???????# """ #??# # # | | ???????# #??# # ""# | | ???????# #??# # ""# | | ???????#% #??# [ # T"# | | ##?????#####+######## # ""# | | ########## # ""# | | + + # | | ###### """"" # # | | " #????# ""T"" # """ # | | " ###### # """ # | | # # """ # | | + # # | | # ####### | | [[[ # ###########+## #?????? | | [[[ # #???# ! # #?????? | | [[ # #???# [ #####?????? | | # #???# #?????????? | | ###### #???# """ #?????????? | | ?????# #???# """"" #?????????? | +----------------------------------------------------+ Best States ------------- Heat Dissipation 38 Energy Generation 10 Energy Capacity 125 Matter Stores 300 Matter Capacity 300 Sight Range 16 Robot Scan Range 14 Terrain Scan Density 10 Armor Coverage 150 Evasion (%) 53 Recoil Reduction 1 Item Schematics ----------------- None Robot Schematics ------------------ None Fabricated ------------ Nothing Alien Tech Used ----------------- None Achievements -------------- None Challenges ------------ None Game ------ Seed CoreConcussivePurifier Manual? 0 Play Time 00:13:25 Cumulative 11.2 hours Start 2024.07.12 @ 22:23:53 End 2024.07.12 @ 22:36:34 Sessions 1 Manual Loads 0 Difficulty Rogue Special Mode None Game No. 30 Rogue 30 Adventurer 0 Explorer 0 Win Type - Total 0 Types 0/0/0/0/0/0/0/0/0 Lore% 17 Gallery% 15 Achievement% 16 Wizard Run 0 Options --------- Layout 1 ASCII 0 Keyboard 0 Movement Arrows Keybinds 0 Fullscreen 1 Font 28/Dina Map View 50x43 Zoom Use 0% Tactical HUD 0 Map Filters NONE Filters NONE Steam 1 RUN: d408eeb7-4b2d-47e2-a80c-460daeee4d69